[Event "2nd Namma Bengaluru Open-A 2025"]
[Site "Bengaluru"]
[Date "2025.04.11"]
[Round "2.5"]
[White "Pantsulaia, Levan"]
[Black "Singh, S. Vikramjit"]
[Result "1-0"]
[Annotator "ChessBase"]
[ECO "A09"]
[WhiteElo "2532"]
[BlackElo "2165"]
[PlyCount "51"]
[EventDate "2025.04.10"]
[EventType "swiss"]
[EventCountry "IND"]
[SourceTitle "playchess.com"]
[Source "ChessBase"]
[SourceQuality "1"]
[TimeControl "5400+30"]

1. Nf3 {[%emt 0:07:16]} d5 {[%emt 0:00:32]} 2. c4 {[%emt 0:00:21]} d4 {[%emt 0:02:09]} 3. b4 {[%emt 0:00:15]} c5 {[%emt 0:00:37]} 4. b5 {[%emt 0:00:07]} g6 {[%emt 0:05:50]} 5. g3 {[%emt 0:00:38]} b6 {[%emt 0:02:54]} 6. Bg2 {[%emt 0:00:56]} Bb7 {[%emt 0:00:12]} 7. a4 {[%emt 0:02:35]} a5 {[%emt 0:00:43]} 8. O-O {[%emt 0:04:19]} Bg7 {[%emt 0:01:18]} 9. d3 {[%emt 0:00:23]} e5 {[%emt 0:12:57]} 10. Ra2 {[%emt 0:00:57]} Ne7 {[%emt 0:00:48]} 11. e3 {[%emt 0:00:21]} O-O {[%emt 0:05:39]} 12. exd4 {[%emt 0:00:48]} exd4 {[%emt 0:01:20]} 13. Re1 {[%emt 0:01:36]} Nd7 {[%emt 0:12:58]} 14. Bf4 {[%emt 0:15:54]} Re8 {[%emt 0:07:50]} 15. Rae2 {[%emt 0:07:10]} Nf6 {[%emt 0:04:52]} 16. Nbd2 {[%emt 0:09:02]} h6 {[%emt 0:07:27]} 17. Be5 {[%emt 0:02:00]} Qd7 {[%emt 0:06:24]} 18. Bxf6 {[%emt 0:02:34]} Bxf6 {[%emt 0:01:07]} 19. Ne5 {[%emt 0:00:06]} Bxe5 {[%emt 0:06:48]} 20. Bxb7 {[%emt 0:00:22]} Qxb7 {[%emt 0:00:40]} 21. Rxe5 {[%emt 0:00:07]} Kf8 {[%emt 0:00:11]} 22. Ne4 {[%emt 0:03:44]} Nf5 {[%emt 0:02:49]} 23. Nf6 {[%emt 0:00:18]} Rxe5 {[%emt 0:01:03]} 24. Rxe5 {[%emt 0:00:06]} Qc7 {[%emt 0:02:54]} 25. Qf3 {[%emt 0:05:31]} Qxe5 {[%emt 0:02:50]} 26. Nd7+ {[%emt 0:00:08]} 1-0

[Event "2nd Namma Bengaluru Open-A 2025"]
[Site "Bengaluru"]
[Date "2025.04.11"]
[Round "2.6"]
[White "Sherla Prathamesh"]
[Black "Aronyak Ghosh"]
[Result "1/2-1/2"]
[Annotator "ChessBase"]
[ECO "A16"]
[WhiteElo "2157"]
[BlackElo "2525"]
[PlyCount "86"]
[EventDate "2025.04.10"]
[EventType "swiss"]
[EventCountry "IND"]
[SourceTitle "playchess.com"]
[Source "ChessBase"]
[SourceQuality "1"]
[TimeControl "5400+30"]

1. c4 {[%emt 0:00:11]} Nf6 {[%emt 0:02:01]} 2. Nc3 {[%emt 0:00:08]} b6 {[%emt 0:01:39]} 3. e4 {[%emt 0:00:44]} Bb7 {[%emt 0:00:38]} 4. e5 {[%emt 0:02:58]} Ne4 {[%emt 0:00:05]} 5. Qf3 {[%emt 0:06:31]} Nxc3 {[%emt 1:28:37]} 6. Qxc3 {[%emt 0:06:16]} e6 {[%emt 0:00:00]} 7. Nf3 {[%emt 0:02:09]} c5 {[%emt 0:00:00]} 8. Be2 {[%emt 0:01:21]} Nc6 {[%emt 0:00:00]} 9. d3 {[%emt 0:02:24]} d6 {[%emt 0:00:00]} 10. Bg5 {[%emt 0:04:48]} Be7 {[%emt 0:00:00]} 11. Bxe7 {[%emt 0:02:54]} Kxe7 {[%emt 0:00:00]} 12. d4 {[%emt 0:04:03]} cxd4 {[%emt 0:00:00]} 13. Nxd4 {[%emt 0:00:11]} dxe5 {[%emt 0:00:00]} 14. Nxc6+ {[%emt 0:01:25]} Bxc6 {[%emt 0:00:00]} 15. Qxe5 {[%emt 0:01:48]} f6 {[%emt 0:00:00]} 16. Qg3 {[%emt 0:02:38]} Kf7 {[%emt 0:00:00]} 17. O-O {[%emt 0:02:01]} Qb8 {[%emt 0:00:00]} 18. Qh3 {[%emt 0:05:42]} Qf4 {[%emt 0:00:00]} 19. Rfe1 {[%emt 0:02:58]} Rae8 {[%emt 0:00:00]} 20. Rad1 {[%emt 0:08:39]} g6 {[%emt 0:00:00]} 21. b4 {[%emt 0:10:03]} Re7 {[%emt 0:00:00]} 22. Bf1 {[%emt 0:02:33]} h5 {[%emt 0:00:00]} 23. b5 {[%emt 0:00:38]} Be8 {[%emt 0:00:00]} 24. Qc3 {[%emt 0:04:40]} Qc7 {[%emt 0:00:00]} 25. a4 {[%emt 0:04:45]} Bd7 {[%emt 0:00:00]} 26. Rc1 {[%emt 0:05:02]} Qc5 {[%emt 0:00:00]} 27. Qe3 {[%emt 0:00:33]} Qxe3 {[%emt 0:00:00]} 28. Rxe3 {[%emt 0:00:02]} Rc8 {[%emt 0:00:00]} 29. c5 {[%emt 0:00:32]} Rxc5 {[%emt 0:00:00]} 30. Rxc5 {[%emt 0:00:06]} bxc5 {[%emt 0:00:00]} 31. Rc3 {[%emt 0:00:07]} e5 {[%emt 0:00:00]} 32. Rxc5 {[%emt 0:00:32]} Ke6 {[%emt 0:00:00]} 33. Rc7 {[%emt 0:02:47]} Be8 {[%emt 0:00:00]} 34. Rc8 {[%emt 0:01:10]} Kd6 {[%emt 0:00:00]} 35. a5 {[%emt 0:01:35]} Bd7 {[%emt 0:00:00]} 36. Rb8 {[%emt 0:03:56]} Re8 {[%emt 0:00:00]} 37. Rb7 {[%emt 0:02:43]} Rc8 {[%emt 0:00:00]} 38. f3 {[%emt 0:00:46]} Rc7 {[%emt 0:00:00]} 39. Rxc7 {[%emt 0:01:59]} Kxc7 {[%emt 0:00:00]} 40. Bd3 {[%emt 0:01:44]} f5 {[%emt 0:00:00]} 41. h4 {[%emt 0:02:32]} Be6 {[%emt 0:00:00]} 42. Kf2 {[%emt 0:00:14]} Kd6 {[%emt 0:00:00]} 43. g4 {[%emt 0:01:14]} Kc5 {[%emt 0:01:59]} 1/2-1/2

[Event "2nd Namma Bengaluru Open-A 2025"]
[Site "Bengaluru"]
[Date "2025.04.11"]
[Round "2.7"]
[White "Rajarishi Karthi"]
[Black "Ayush Sharma"]
[Result "1-0"]
[Annotator "ChessBase"]
[ECO "E49"]
[WhiteElo "2155"]
[BlackElo "2485"]
[PlyCount "113"]
[EventDate "2025.04.10"]
[EventType "swiss"]
[EventCountry "IND"]
[SourceTitle "playchess.com"]
[Source "ChessBase"]
[SourceQuality "1"]
[TimeControl "5400+30"]

1. d4 {[%emt 0:00:28]} Nf6 {[%emt 0:00:09]} 2. c4 {[%emt 0:00:38]} e6 {[%emt 0:00:17]} 3. Nc3 {[%emt 0:00:53]} Bb4 {[%emt 0:00:09]} 4. f3 {[%emt 0:00:51]} d5 {[%emt 0:01:41]} 5. a3 {[%emt 0:00:17]} Bxc3+ {[%emt 0:00:08]} 6. bxc3 {[%emt 0:00:08]} O-O {[%emt 0:00:46]} 7. e3 {[%emt 0:01:28]} c5 {[%emt 0:03:25]} 8. cxd5 {[%emt 0:03:18]} exd5 {[%emt 0:03:14]} 9. Bd3 {[%emt 0:03:15]} b6 {[%emt 0:03:03]} 10. Ne2 {[%emt 0:05:01]} Ba6 {[%emt 0:01:03]} 11. O-O {[%emt 0:03:06]} Re8 {[%emt 0:05:21]} 12. Ng3 {[%emt 0:02:50]} Bxd3 {[%emt 0:02:27]} 13. Qxd3 {[%emt 0:00:38]} Nc6 {[%emt 0:00:39]} 14. Ra2 {[%emt 0:02:35]} Rc8 {[%emt 0:04:53]} 15. Re2 {[%emt 0:05:38]} Qd7 {[%emt 0:07:32]} 16. Bb2 {[%emt 0:05:11]} Rcd8 {[%emt 0:19:07]} 17. Ref2 {[%emt 0:05:14]} h5 {[%emt 0:08:52]} 18. e4 {[%emt 0:07:43]} c4 {[%emt 0:07:49]} 19. Qc2 {[%emt 0:02:54]} g6 {[%emt 0:03:46]} 20. e5 {[%emt 0:02:03]} h4 {[%emt 0:00:29]} 21. Ne2 {[%emt 0:01:15]} Nh7 {[%emt 0:01:15]} 22. Bc1 {[%emt 0:01:17]} Ne7 {[%emt 0:02:14]} 23. g3 {[%emt 0:04:09]} b5 {[%emt 0:02:12]} 24. gxh4 {[%emt 0:00:22]} Nf5 {[%emt 0:06:16]} 25. Ng3 {[%emt 0:01:49]} Nxh4 {[%emt 0:00:16]} 26. Kh1 {[%emt 0:07:25]} Kh8 {[%emt 0:00:41]} 27. Qd2 {[%emt 0:01:15]} Rg8 {[%emt 0:02:31]} 28. Qf4 {[%emt 0:02:11]} Nf5 {[%emt 0:00:21]} 29. Rg1 {[%emt 0:00:54]} Rg7 {[%emt 0:03:40]} 30. Rfg2 {[%emt 0:02:52]} Rdg8 {[%emt 0:02:04]} 31. Qg4 {[%emt 0:01:42]} f6 {[%emt 0:03:37]} 32. Bf4 {[%emt 0:02:33]} Nxg3+ {[%emt 0:04:32]} 33. Qxg3 {[%emt 0:00:29]} Qf5 {[%emt 0:00:18]} 34. exf6 {[%emt 0:00:12]} Nxf6 {[%emt 0:00:28]} 35. Be5 {[%emt 0:00:08]} Rf8 {[%emt 0:00:28]} 36. Qh4+ {[%emt 0:03:16]} Kg8 {[%emt 0:00:03]} 37. Rg3 {[%emt 0:00:13]} Kf7 {[%emt 0:01:26]} 38. Qg5 {[%emt 0:00:50]} Qxg5 {[%emt 0:00:21]} 39. Rxg5 {[%emt 0:00:06]} Rd8 {[%emt 0:00:13]} 40. Rb1 {[%emt 0:01:21]} a6 {[%emt 0:00:41]} 41. a4 {[%emt 0:00:20]} bxa4 {[%emt 0:01:59]} 42. Rb7+ {[%emt 0:00:07]} Kg8 {[%emt 0:00:31]} 43. Rb4 {[%emt 0:00:05]} Nh7 {[%emt 0:00:32]} 44. Rg3 {[%emt 0:00:08]} Rf7 {[%emt 0:00:19]} 45. Rxa4 {[%emt 0:00:07]} Nf8 {[%emt 0:00:12]} 46. Rxa6 {[%emt 0:00:23]} Rb7 {[%emt 0:00:12]} 47. f4 {[%emt 0:00:05]} Rb1+ {[%emt 0:00:38]} 48. Kg2 {[%emt 0:00:06]} Rb2+ {[%emt 0:00:32]} 49. Kh3 {[%emt 0:00:06]} Rd7 {[%emt 0:01:01]} 50. f5 {[%emt 0:00:09]} Rh7+ {[%emt 0:00:29]} 51. Kg4 {[%emt 0:00:06]} Rbxh2 {[%emt 0:00:33]} 52. fxg6 {[%emt 0:00:18]} R7h4+ {[%emt 0:00:09]} 53. Kg5 {[%emt 0:04:54]} Rh5+ {[%emt 0:00:12]} 54. Kf6 {[%emt 0:00:28]} Rf2+ {[%emt 0:01:12]} 55. Ke7 {[%emt 0:00:07]} Rh6 {[%emt 0:00:02]} 56. Ra8 {[%emt 0:01:00]} Rb2 {[%emt 0:00:58]} 57. Rxf8# {[%emt 0:22:03]} 1-0

[Event "2nd Namma Bengaluru Open-A 2025"]
[Site "Bengaluru"]
[Date "2025.04.11"]
[Round "2.8"]
[White "Avirat Chauhan"]
[Black "Savchenko, Boris"]
[Result "1-0"]
[Annotator "ChessBase"]
[ECO "D97"]
[WhiteElo "2145"]
[BlackElo "2459"]
[PlyCount "99"]
[EventDate "2025.04.10"]
[EventType "swiss"]
[EventCountry "IND"]
[SourceTitle "playchess.com"]
[Source "ChessBase"]
[SourceQuality "1"]
[TimeControl "5400+30"]

1. d4 {[%emt 0:00:05]} Nf6 {[%emt 0:06:31]} 2. c4 {[%emt 0:00:12]} g6 {[%emt 0:00:26]} 3. Nc3 {[%emt 0:00:05]} d5 {[%emt 0:00:05]} 4. Nf3 {[%emt 0:00:04]} Bg7 {[%emt 0:00:05]} 5. Qb3 {[%emt 0:00:05]} dxc4 {[%emt 0:00:14]} 6. Qxc4 {[%emt 0:00:05]} O-O {[%emt 0:00:14]} 7. e4 {[%emt 0:00:03]} Na6 {[%emt 0:00:13]} 8. Be2 {[%emt 0:00:06]} c5 {[%emt 0:00:05]} 9. d5 {[%emt 0:00:03]} e6 {[%emt 0:00:05]} 10. O-O {[%emt 0:00:04]} exd5 {[%emt 0:00:08]} 11. exd5 {[%emt 0:00:05]} Re8 {[%emt 0:00:34]} 12. Rd1 {[%emt 0:03:20]} Bf5 {[%emt 0:00:27]} 13. Bg5 {[%emt 0:07:43]} h6 {[%emt 0:07:27]} 14. Bxf6 {[%emt 0:00:10]} Qxf6 {[%emt 0:00:13]} 15. Rd2 {[%emt 0:03:06]} h5 {[%emt 0:13:07]} 16. Qf4 {[%emt 0:01:42]} Nb4 {[%emt 0:11:19]} 17. d6 {[%emt 0:04:30]} Rad8 {[%emt 0:01:59]} 18. a3 {[%emt 0:08:49]} Rxe2 {[%emt 0:04:58]} 19. Rxe2 {[%emt 0:02:01]} Nd3 {[%emt 0:00:15]} 20. Qg3 {[%emt 0:06:11]} Bf8 {[%emt 0:14:15]} 21. Ng5 {[%emt 0:05:57]} Bxd6 {[%emt 0:07:30]} 22. Nge4 {[%emt 0:06:21]} Bxe4 {[%emt 0:07:12]} 23. Nxe4 {[%emt 0:00:07]} Qe7 {[%emt 0:00:13]} 24. Qf3 {[%emt 0:05:54]} Be5 {[%emt 0:00:24]} 25. Nc3 {[%emt 0:10:17]} c4 {[%emt 0:00:40]} 26. Rd1 {[%emt 0:00:48]} a6 {[%emt 0:03:47]} 27. a4 {[%emt 0:01:53]} Qd7 {[%emt 0:04:33]} 28. Rxd3 {[%emt 0:01:50]} Bxh2+ {[%emt 0:00:27]} 29. Kxh2 {[%emt 0:00:08]} cxd3 {[%emt 0:00:10]} 30. Rd2 {[%emt 0:01:26]} Kg7 {[%emt 0:05:44]} 31. Qf4 {[%emt 0:06:16]} f6 {[%emt 0:00:32]} 32. Rd1 {[%emt 0:05:49]} h4 {[%emt 0:01:40]} 33. Ne4 {[%emt 0:07:41]} Qe7 {[%emt 0:00:10]} 34. Nd2 {[%emt 0:05:50]} g5 {[%emt 0:01:09]} 35. Qe3 {[%emt 0:00:26]} Qc7+ {[%emt 0:01:41]} 36. Kg1 {[%emt 0:00:13]} Rd7 {[%emt 0:00:20]} 37. Re1 {[%emt 0:02:07]} Qc2 {[%emt 0:01:26]} 38. b3 {[%emt 0:01:21]} b5 {[%emt 0:02:07]} 39. axb5 {[%emt 0:00:11]} axb5 {[%emt 0:00:04]} 40. Kh1 {[%emt 0:01:42]} Rf7 {[%emt 0:01:42]} 41. f4 {[%emt 0:00:59]} g4 {[%emt 0:01:26]} 42. f5 {[%emt 0:00:02]} Kh7 {[%emt 0:00:22]} 43. Qf2 {[%emt 0:01:04]} g3 {[%emt 0:00:06]} 44. Qf4 {[%emt 0:00:14]} Qc6 {[%emt 0:01:22]} 45. Qxh4+ {[%emt 0:02:01]} Kg8 {[%emt 0:00:06]} 46. Qxg3+ {[%emt 0:00:21]} Rg7 {[%emt 0:00:05]} 47. Qf3 {[%emt 0:00:51]} Qd7 {[%emt 0:01:00]} 48. Qe3 {[%emt 0:01:24]} Qxf5 {[%emt 0:00:53]} 49. Qe6+ {[%emt 0:00:05]} Qxe6 {[%emt 0:00:40]} 50. Rxe6 {[%emt 0:00:01]} 1-0

[Event "2nd Namma Bengaluru Open-A 2025"]
[Site "Bengaluru"]
[Date "2025.04.11"]
[Round "2.9"]
[White "Stany, G.A."]
[Black "Esshan Wadhawan"]
[Result "1-0"]
[Annotator "ChessBase"]
[ECO "B22"]
[WhiteElo "2454"]
[BlackElo "2132"]
[PlyCount "67"]
[EventDate "2025.04.10"]
[EventType "swiss"]
[EventCountry "IND"]
[SourceTitle "playchess.com"]
[Source "ChessBase"]
[SourceQuality "1"]
[TimeControl "5400+30"]

1. e4 {[%emt 0:00:09]} c5 {[%emt 1:31:00]} 2. d4 {[%emt 0:03:44]} cxd4 {[%emt 0:00:00]} 3. c3 {[%emt 0:00:03]} Nf6 {[%emt 0:00:00]} 4. e5 {[%emt 0:00:20]} Nd5 {[%emt 0:00:00]} 5. Nf3 {[%emt 0:00:12]} d6 {[%emt 0:00:00]} 6. Qxd4 {[%emt 0:02:47]} e6 {[%emt 0:00:00]} 7. exd6 {[%emt 0:00:49]} Qxd6 {[%emt 0:00:00]} 8. Be2 {[%emt 0:02:36]} Nc6 {[%emt 0:00:00]} 9. Qa4 {[%emt 0:00:09]} Bd7 {[%emt 0:00:00]} 10. O-O {[%emt 0:01:40]} Be7 {[%emt 0:00:00]} 11. Rd1 {[%emt 0:03:49]} Qc7 {[%emt 0:00:00]} 12. Na3 {[%emt 0:05:45]} O-O {[%emt 0:00:00]} 13. Nb5 {[%emt 0:08:20]} Qc8 {[%emt 0:00:00]} 14. Qc2 {[%emt 0:12:15]} a6 {[%emt 0:00:00]} 15. Nbd4 {[%emt 0:00:07]} Nxd4 {[%emt 0:00:00]} 16. Nxd4 {[%emt 0:00:37]} Qc5 {[%emt 0:00:00]} 17. Bf3 {[%emt 0:01:55]} Bc6 {[%emt 0:00:00]} 18. Nxc6 {[%emt 0:07:46]} bxc6 {[%emt 0:00:00]} 19. Qe2 {[%emt 0:00:10]} Bf6 {[%emt 0:00:00]} 20. g3 {[%emt 0:15:03]} Rfd8 {[%emt 0:01:24]} 21. Kg2 {[%emt 0:01:14]} a5 {[%emt 0:01:05]} 22. a4 {[%emt 0:01:08]} Rab8 {[%emt 0:00:24]} 23. h4 {[%emt 0:01:00]} h6 {[%emt 0:02:58]} 24. Be4 {[%emt 0:01:10]} h5 25. Qf3 {[%emt 0:00:30]} Qc4 26. Bd3 {[%emt 0:00:30]} Qc5 27. Kg1 {[%emt 0:00:30]} Ne7 28. Be3 {[%emt 0:00:30]} Qd5 29. Bh7+ {[%emt 0:00:30]} Kxh7 30. Rxd5 {[%emt 0:00:30]} Rxd5 31. Qe2 {[%emt 0:00:30]} g6 32. Re1 {[%emt 0:00:30]} Nf5 33. Bc1 {[%emt 0:00:30]} Rc8 34. Qc4 {[%emt 0:00:30]} 1-0

[Event "2nd Namma Bengaluru Open-A 2025"]
[Site "Bengaluru"]
[Date "2025.04.11"]
[Round "2.10"]
[White "Harshit Ranjan Sahu"]
[Black "Goutham Krishna H"]
[Result "1/2-1/2"]
[Annotator "RC"]
[ECO "E67"]
[WhiteElo "2142"]
[BlackElo "2449"]
[PlyCount "81"]
[EventDate "2025.04.10"]
[EventType "swiss"]
[EventCountry "IND"]
[SourceTitle "playchess.com"]
[Source "ChessBase"]
[SourceQuality "1"]
[TimeControl "5400+30"]

1. Nf3 {[%emt 0:07:46]} Nf6 {[%emt 0:00:10]} 2. g3 {[%emt 0:00:41]} g6 {[%emt 0:00:02]} 3. Bg2 {[%emt 0:00:13]} Bg7 {[%emt 0:00:02]} 4. O-O {[%emt 0:00:22]} O-O {[%emt 0:00:03]} 5. d4 {[%emt 0:00:24]} d6 {[%emt 0:00:03]} 6. c4 {[%emt 0:01:36]} Nbd7 {[%emt 0:00:07]} 7. Nc3 {[%emt 0:00:28]} e5 {[%emt 0:00:03]} 8. h3 {[%emt 0:03:38]} Re8 {[%emt 0:00:21]} 9. Rb1 {[%emt 0:01:32]} c6 {[%emt 0:08:35]} 10. b4 {[%emt 0:08:09]} e4 {[%emt 0:00:51]} 11. Nd2 {[%emt 0:05:45]} d5 {[%emt 0:08:03]} 12. e3 {[%emt 0:01:30]} a6 {[%emt 0:02:14]} 13. a4 {[%emt 0:03:10]} h5 {[%emt 0:01:59]} 14. b5 {[%emt 0:10:33]} Nf8 {[%emt 0:02:32]} 15. bxc6 {[%emt 0:11:00]} bxc6 {[%emt 0:00:09]} 16. Qb3 {[%emt 0:04:31]} Bf5 {[%emt 0:02:57]} 17. Qb7 {[%emt 0:05:18]} Rc8 {[%emt 0:23:22]} 18. Ba3 {[%emt 0:05:06]} N8h7 {[%emt 0:05:12]} 19. Rb6 {[%emt 0:04:27]} Ng5 {[%emt 0:18:12]} 20. cxd5 {[%emt 0:06:41]} Nxh3+ {[%emt 0:06:56]} 21. Bxh3 {[%emt 0:05:24]} Bxh3 {[%emt 0:00:02]} 22. dxc6 h4 {[%emt 0:00:30]} 23. Rxa6 hxg3 {[%emt 0:00:30]} 24. Ra7 Nh5 {[%emt 0:00:30]} 25. Ndxe4 Bxf1 {[%emt 0:00:30]} 26. Qxf7+ Kh8 {[%emt 0:00:30]} 27. Be7 Bc4 {[%emt 0:00:30]} 28. d5 gxf2+ {[%emt 0:00:30]} 29. Kxf2 Qb6 {[%emt 0:00:30]} 30. Rb7 Rxe7 {[%emt 0:00:30]} 31. Qxe7 Qa5 {[%emt 0:00:30]} 32. Ra7 Qb6 {[%emt 0:00:30]} 33. Rb7 Qa5 {[%emt 0:00:30]} 34. c7 Qa8 {[%emt 0:00:30]} 35. Nd6 Bd3 {[%emt 0:00:30]} 36. Nf7+ Kh7 {[%emt 0:00:30]} 37. Ng5+ Kh6 {[%emt 0:00:30]} 38. Nf7+ Kh7 {[%emt 0:00:30]} 39. Ng5+ Kh6 {[%emt 0:00:30]} 40. Nf7+ Kh7 {[%emt 0:00:30]} 41. Ng5+ 1/2-1/2

[Event "2nd Namma Bengaluru Open-A 2025"]
[Site "Bengaluru"]
[Date "2025.04.11"]
[Round "2.11"]
[White "Sanikidze, Tornike"]
[Black "Jihan Tejas Shah"]
[Result "1-0"]
[Annotator "RC"]
[ECO "A65"]
[WhiteElo "2448"]
[BlackElo "2131"]
[PlyCount "109"]
[EventDate "2025.04.10"]
[EventType "swiss"]
[EventCountry "IND"]
[SourceTitle "playchess.com"]
[Source "ChessBase"]
[SourceQuality "1"]
[TimeControl "5400+30"]

1. d4 {[%emt 0:07:04]} Nf6 {[%emt 0:00:12]} 2. c4 {[%emt 0:00:11]} g6 {[%emt 0:00:05]} 3. Nc3 {[%emt 0:00:17]} Bg7 {[%emt 0:00:05]} 4. e4 {[%emt 0:00:09]} d6 {[%emt 0:00:03]} 5. Be2 {[%emt 0:00:08]} O-O {[%emt 0:00:21]} 6. Bg5 {[%emt 0:00:20]} c5 {[%emt 0:01:24]} 7. d5 {[%emt 0:01:27]} e6 {[%emt 0:01:20]} 8. Qd2 {[%emt 0:00:11]} exd5 {[%emt 0:01:57]} 9. cxd5 {[%emt 0:00:16]} Re8 {[%emt 0:02:52]} 10. f3 {[%emt 0:00:41]} h6 {[%emt 0:10:10]} 11. Bxh6 {[%emt 0:00:52]} Nxe4 {[%emt 0:00:05]} 12. Nxe4 {[%emt 0:00:11]} Qh4+ {[%emt 0:07:49]} 13. g3 {[%emt 0:00:01]} Qxh6 {[%emt 0:00:08]} 14. Qxh6 {[%emt 0:00:30]} Bxh6 {[%emt 0:00:04]} 15. Nf6+ {[%emt 0:00:05]} Kf8 {[%emt 0:00:43]} 16. Nxe8 {[%emt 0:00:08]} Kxe8 {[%emt 0:00:03]} 17. f4 {[%emt 0:02:04]} Nd7 {[%emt 0:03:16]} 18. Nf3 {[%emt 0:04:05]} Nf6 {[%emt 0:03:48]} 19. O-O-O {[%emt 0:16:03]} Bd7 {[%emt 0:06:52]} 20. Nd2 {[%emt 0:10:28]} b5 {[%emt 0:02:15]} 21. Bf3 {[%emt 0:06:34]} Kf8 {[%emt 0:07:18]} 22. Rde1 {[%emt 0:06:52]} Rb8 {[%emt 0:15:08]} 23. h4 {[%emt 0:03:24]} a5 {[%emt 0:03:16]} 24. Ne4 {[%emt 0:03:01]} Nxe4 {[%emt 0:02:20]} 25. Rxe4 {[%emt 0:00:36]} b4 {[%emt 0:03:35]} 26. Rhe1 {[%emt 0:01:04]} Re8 {[%emt 0:03:45]} 27. Rxe8+ {[%emt 0:02:31]} Bxe8 {[%emt 0:00:14]} 28. h5 {[%emt 0:13:53]} gxh5 {[%emt 0:02:17]} 29. Bxh5 {[%emt 0:01:42]} Bg7 {[%emt 0:03:14]} 30. Be2 {[%emt 0:00:30]} Bd4 {[%emt 0:02:10]} 31. Rf1 {[%emt 0:00:01]} f6 {[%emt 0:02:26]} 32. g4 {[%emt 0:04:42]} Bg6 {[%emt 0:02:16]} 33. f5 {[%emt 0:00:04]} Bf7 {[%emt 0:00:23]} 34. Bc4 {[%emt 0:00:01]} Be5 {[%emt 0:02:24]} 35. Kc2 {[%emt 0:00:53]} Kg7 {[%emt 0:01:14]} 36. Rh1 {[%emt 0:00:16]} Be8 {[%emt 0:01:53]} 37. b3 {[%emt 0:00:01]} Bf7 {[%emt 0:01:06]} 38. Kd3 {[%emt 0:00:07]} Bd4 {[%emt 0:01:27]} 39. Ke4 {[%emt 0:00:18]} Be8 {[%emt 0:00:57]} 40. Ba6 {[%emt 0:00:01]} Bc3 {[%emt 0:01:00]} 41. Kd3 {[%emt 0:00:07]} a4 {[%emt 0:01:06]} 42. Kc4 {[%emt 0:02:16]} a3 {[%emt 0:00:30]} 43. Bb7 {[%emt 0:00:45]} Bf7 {[%emt 0:01:15]} 44. Bc6 {[%emt 0:00:51]} Be5 {[%emt 0:01:18]} 45. Rh3 {[%emt 0:00:46]} Bb2 {[%emt 0:00:48]} 46. Kb5 {[%emt 0:00:03]} Bd4 {[%emt 0:00:44]} 47. Ka6 {[%emt 0:00:33]} Kf8 {[%emt 0:00:59]} 48. Kb7 {[%emt 0:01:13]} Ke7 {[%emt 0:01:37]} 49. Kc7 {[%emt 0:00:08]} Bg8 {[%emt 0:01:04]} 50. Rh2 {[%emt 0:04:40]} c4 {[%emt 0:02:34]} 51. Re2+ {[%emt 0:00:40]} Kf7 {[%emt 0:00:26]} 52. bxc4 {[%emt 0:01:42]} b3 {[%emt 0:00:05]} 53. Ba4 {[%emt 0:04:34]} bxa2 {[%emt 0:00:47]} 54. Rxa2 {[%emt 0:00:07]} Bb2 {[%emt 0:00:10]} 55. Kxd6 {[%emt 0:00:06]} 1-0

[Event "2nd Namma Bengaluru Open-A 2025"]
[Site "Bengaluru"]
[Date "2025.04.11"]
[Round "2.12"]
[White "Kshatriya Nitin Vekhande"]
[Black "Nitish Belurkar"]
[Result "0-1"]
[Annotator "RC"]
[ECO "A08"]
[WhiteElo "2133"]
[BlackElo "2441"]
[PlyCount "80"]
[EventDate "2025.04.10"]
[EventType "swiss"]
[EventCountry "IND"]
[SourceTitle "playchess.com"]
[Source "ChessBase"]
[SourceQuality "1"]
[TimeControl "5400+30"]

1. e4 {[%emt 0:01:09]} e6 {[%emt 0:00:06]} 2. d3 {[%emt 0:01:01]} d5 {[%emt 0:00:06]} 3. Nd2 {[%emt 0:00:04]} c5 {[%emt 0:00:33]} 4. g3 {[%emt 0:00:24]} Nc6 {[%emt 0:00:18]} 5. Bg2 {[%emt 0:00:07]} g6 {[%emt 0:02:00]} 6. Ngf3 {[%emt 0:00:10]} Bg7 {[%emt 0:00:06]} 7. O-O {[%emt 0:00:09]} Nf6 {[%emt 0:00:06]} 8. c3 {[%emt 0:01:40]} O-O {[%emt 0:00:24]} 9. Re1 {[%emt 0:00:25]} a5 {[%emt 0:00:22]} 10. a4 {[%emt 0:05:50]} b6 {[%emt 0:00:09]} 11. Nf1 {[%emt 0:05:48]} dxe4 {[%emt 0:18:18]} 12. dxe4 {[%emt 0:00:57]} Qxd1 {[%emt 0:00:59]} 13. Rxd1 {[%emt 0:00:04]} Ba6 {[%emt 0:07:34]} 14. Bf4 {[%emt 0:19:42]} Nxe4 {[%emt 0:06:51]} 15. Ne1 {[%emt 0:20:55]} f5 {[%emt 0:01:11]} 16. Nd2 {[%emt 0:00:40]} Nxd2 {[%emt 0:22:10]} 17. Bxc6 {[%emt 0:06:50]} Nb3 {[%emt 0:00:47]} 18. Bxa8 {[%emt 0:11:07]} Nxa1 {[%emt 0:11:30]} 19. Bc6 {[%emt 0:08:27]} Nb3 {[%emt 0:01:17]} 20. Bc7 {[%emt 0:06:33]} Rc8 {[%emt 0:05:00]} 21. Rd8+ {[%emt 0:01:05]} Rxd8 {[%emt 0:00:05]} 22. Bxd8 {[%emt 0:00:03]} Kf7 {[%emt 0:07:35]} 23. Bxb6 {[%emt 0:01:41]} Ke7 {[%emt 0:00:34]} 24. Bc7 {[%emt 0:00:15]} Bc8 {[%emt 0:00:33]} 25. Nc2 {[%emt 0:01:59]} Bd7 {[%emt 0:01:06]} 26. Bb5 {[%emt 0:00:34]} Bxb5 {[%emt 0:03:51]} 27. axb5 {[%emt 0:00:01]} Kd7 {[%emt 0:00:06]} 28. Bb6 {[%emt 0:01:19]} Bh6 {[%emt 0:01:52]} 29. Na3 {[%emt 0:00:54]} Bc1 {[%emt 0:01:07]} 30. Nc4 {[%emt 0:00:43]} a4 {[%emt 0:00:03]} 31. Ba7 {[%emt 0:00:09]} Kc7 {[%emt 0:01:58]} 32. Nb6 {[%emt 0:03:36]} Kb7 {[%emt 0:00:05]} 33. Nxa4 {[%emt 0:00:01]} Kxa7 {[%emt 0:00:07]} 34. Kf1 {[%emt 0:00:14]} c4 {[%emt 0:00:39]} 35. f4 {[%emt 0:00:43]} Be3 {[%emt 0:00:07]} 36. Ke2 {[%emt 0:00:11]} Bg1 {[%emt 0:00:47]} 37. h3 {[%emt 0:00:05]} Nc5 {[%emt 0:00:17]} 38. Nxc5 {[%emt 0:00:43]} Bxc5 {[%emt 0:00:01]} 39. g4 {[%emt 0:00:06]} Kb6 {[%emt 0:00:04]} 40. Kd2 {[%emt 0:00:22]} Kxb5 {[%emt 0:00:05]} 0-1